bitfinex-derivatives/quotes_BTCF0:USTF0_20240907
["timestamp","ask_amount","ask_price","bid_price","bid_amount"]
[1725670938944,0.15149613,53946.0,53945.0,0.17075893]
[1725670939357,0.15149613,53946.0,53945.0,0.09671]
[1725670946266,0.05878813,53946.0,53945.0,0.09671]
[1725670949255,0.07038314,53946.0,53945.0,0.09671]
[1725670949462,0.15154824,53946.0,53945.0,0.09671]
[1725670949764,0.01159501,53946.0,53945.0,0.09671]
[1725670950456,0.09276022,53946.0,53945.0,0.09671]
[1725670950663,0.1579623,53946.0,53945.0,0.09671]
[1725670951262,0.1579623,53946.0,53945.0,0.06164239]
[1725670951463,0.1579623,53946.0,53944.0,0.01482262]
[1725670951763,0.1579623,53945.0,53944.0,0.092711]
[1725670952860,0.15796249,53945.0,53944.0,0.092711]
[1725670953766,0.11158419,53945.0,53944.0,0.23398547]
[1725670954068,0.11158419,53945.0,53944.0,0.23698547]
[1725670954256,0.20429419,53945.0,53944.0,0.18834161]
[1725670954453,0.19269899,53945.0,53944.0,0.18834161]
[1725670954654,0.09998899,53945.0,53944.0,0.095711]
[1725670955055,0.09998899,53945.0,53944.0,0.18834161]
[1725670955262,0.11158402,53945.0,53944.0,0.095711]
[1725670956167,0.11158402,53945.0,53944.0,0.32961756]
[1725670956467,0.11158402,53945.0,53944.0,0.18834161]
[1725670956661,0.11158402,53945.0,53944.0,0.095711]
[1725670956854,0.11158402,53945.0,53944.0,0.18834161]
[1725670957170,0.11158402,53945.0,53944.0,0.095711]
[1725670957468,0.11158467,53945.0,53944.0,0.04489921]
[1725670958250,0.11158467,53945.0,53944.0,0.13752982]
[1725670959574,0.09998899,53945.0,53944.0,0.13752982]
[1725670959757,0.11158475,53945.0,53944.0,0.13752982]
[1725670960163,0.01159576,53945.0,53944.0,0.27890045]
[1725670960466,0.01159576,53945.0,53944.0,0.27890187]
[1725670961457,0.0836174,53945.0,53944.0,0.04489921]
[1725670961664,0.06850016,53945.0,53944.0,0.04489921]
[1725670962765,0.16121016,53945.0,53944.0,0.04489921]
[1725670963070,0.24237792,53945.0,53944.0,0.04489921]
[1725670963768,0.30855862,53945.0,53944.0,0.04489921]
[1725670963965,0.30855862,53945.0,53944.0,0.003]
[1725670964266,0.40855862,53945.0,53944.0,0.003]
[1725670964571,0.09272,53939.0,53931.0,0.77308338]
[1725670964871,0.14967097,53938.0,53932.0,0.1]
[1725670965074,0.09272,53939.0,53937.0,0.092723]
[1725670965371,0.14967911,53938.0,53937.0,0.092723]
[1725670965572,0.22257832,53938.0,53937.0,0.092723]
[1725670966065,0.2225791,53938.0,53937.0,0.092723]
[1725670966366,0.14967989,53938.0,53937.0,0.092723]
[1725670967166,0.24240189,53938.0,53937.0,0.092723]
[1725670967462,0.16850586,53938.0,53931.0,0.014972]
[1725670967663,0.1,53934.0,53928.0,0.0462]
[1725670967857,0.06850586,53933.0,53929.0,0.1]
[1725670968060,0.06850586,53932.0,53929.0,0.1]
[1725670968263,0.01159707,53931.0,53929.0,0.1]
[1725670968460,0.01159707,53930.0,53929.0,0.192737]
[1725670969469,0.092733,53932.0,53929.0,0.33404008]
[1725670969773,0.19271,53945.0,53936.0,0.092724]
[1725670969960,0.11159714,53942.0,53936.0,0.192724]
[1725670970159,0.01159714,53941.0,53936.0,0.192724]
[1725670970356,0.01159714,53940.0,53936.0,0.192724]
[1725670970560,0.01159714,53939.0,53936.0,0.192724]
[1725670970767,0.01159714,53938.0,53936.0,0.192724]
[1725670970971,0.01159714,53937.0,53936.0,0.192724]
[1725670972160,0.01459714,53937.0,53936.0,0.20766693]
[1725670975869,0.003,53937.0,53936.0,0.20766693]
[1725670976068,0.01459666,53937.0,53936.0,0.20766693]
[1725670976469,0.01459666,53937.0,53936.0,0.30039193]
[1725670976677,0.01459666,53937.0,53936.0,1.45659193]
[1725670977473,0.3265,53949.0,53948.0,0.092705]
[1725670977774,0.01159454,53949.0,53948.0,0.192705]
[1725670978371,0.01159454,53949.0,53948.0,0.16910576]
[1725670978674,0.08144841,53949.0,53948.0,0.16910576]
[1725670978862,0.09544841,53949.0,53948.0,0.16910576]
[1725670979064,0.1766065,53949.0,53948.0,0.16910576]
[1725670979378,0.02559454,53949.0,53948.0,0.16910576]
[1725670981070,0.02559454,53949.0,53948.0,0.72518576]
[1725670981963,0.01559454,53949.0,53948.0,0.72518576]
[1725670983070,0.01559454,53949.0,53948.0,0.81789076]
[1725670983277,0.01559454,53949.0,53948.0,1.41789076]
[1725670983576,0.01559454,53949.0,53948.0,1.43302561]
[1725670984465,0.01559454,53949.0,53948.0,1.48855168]
[1725670984978,0.01559273,53949.0,53948.0,1.48855168]
[1725670985278,0.05796365,53980.0,53948.0,1.48855168]
[1725670985279,0.3265,53967.0,53966.0,0.092674]
[1725670985581,0.5372,53979.0,53973.0,0.092661]
[1725670985582,0.092656,53976.0,53973.0,0.092661]
[1725670985881,0.092656,53976.0,53975.0,0.1]
[1725670986181,0.139153,53978.0,53975.0,0.1]
[1725670987774,0.153153,53978.0,53975.0,0.1]
[1725670987978,0.153153,53978.0,53975.0,0.19]
[1725670988878,0.06655293,53977.0,53975.0,0.19]
[1725670989077,0.06655293,53976.0,53975.0,0.19]
[1725670989674,0.1476762,53976.0,53975.0,0.282658]
[1725670990187,0.06655293,53976.0,53975.0,0.282658]
[1725670990367,0.08055293,53976.0,53975.0,0.283658]
[1725670991273,0.08055293,53976.0,53975.0,0.093658]
[1725670991474,0.1374258,53976.0,53975.0,0.093658]
[1725670993183,0.1374258,53976.0,53975.0,0.283658]
[1725670993371,0.14901473,53976.0,53975.0,0.283658]
[1725670994876,0.1234258,53976.0,53975.0,0.282658]
[1725670995078,0.14901469,53976.0,53975.0,0.283658]
[1725670996884,0.08246176,53976.0,53975.0,0.283658]
[1725670997382,0.07087249,53976.0,53975.0,0.283658]
[1725670997578,0.08246138,53976.0,53975.0,0.283658]
[1725670998478,0.07087249,53976.0,53975.0,0.283658]
[1725670998678,0.08246134,53976.0,53975.0,0.283658]
[1725670999583,0.02558885,53976.0,53975.0,0.283658]
[1725671000481,0.014,53976.0,53975.0,0.283658]
[1725671000681,0.02558885,53976.0,53975.0,0.283658]
[1725671001880,0.02558808,53976.0,53975.0,0.283658]
[1725671002083,0.014,53976.0,53975.0,0.283658]
[1725671002281,0.0774702,53985.0,53975.0,0.283658]
[1725671002482,0.0774702,53985.0,53983.0,0.092643]
[1725671002483,0.01158747,53984.0,53983.0,0.092643]
[1725671004683,0.02558747,53984.0,53983.0,0.093643]
[1725671007196,0.01158747,53984.0,53983.0,0.092643]
[1725671007383,0.01158747,53984.0,53983.0,0.093643]
[1725671008085,0.01158747,53984.0,53983.0,0.193643]
[1725671008481,0.01158675,53984.0,53983.0,0.101]
[1725671008692,0.01158675,53984.0,53983.0,0.11617285]
[1725671009887,0.0953,53989.0,53988.0,0.092636]
[1725671010091,0.0953,53989.0,53988.0,0.192636]
[1725671010092,0.10688664,53989.0,53988.0,0.192636]
[1725671010286,0.10688619,53989.0,53988.0,0.192636]
[1725671011083,0.10688619,53989.0,53988.0,0.1]
[1725671011283,0.19952019,53989.0,53988.0,0.1]
[1725671011489,0.20552019,53989.0,53988.0,0.101]
[1725671011697,0.20552013,53989.0,53988.0,0.101]
[1725671011885,0.27220093,53989.0,53988.0,0.101]
[1725671012086,0.27220093,53989.0,53988.0,0.193636]
[1725671013093,0.27220093,53989.0,53988.0,0.093636]
[1725671014592,0.32906204,53989.0,53988.0,0.093636]
[1725671015084,0.32906304,53989.0,53988.0,0.093636]
[1725671016488,0.41017264,53989.0,53988.0,0.093636]
[1725671017096,0.41017515,53989.0,53988.0,0.093636]
[1725671017290,0.4101751,53989.0,53988.0,0.093636]
[1725671017685,0.65082597,53989.0,53986.0,0.1]
[1725671017892,0.12330538,53988.0,53987.0,0.092638]
[1725671018091,0.05686362,53988.0,53987.0,0.092638]
[1725671019198,0.0684507,53988.0,53987.0,0.092638]
[1725671019893,0.13489246,53988.0,53987.0,0.092638]
[1725671020091,0.14289246,53988.0,53987.0,0.093638]
[1725671020289,0.0764507,53988.0,53987.0,0.093638]
[1725671021496,0.06486362,53988.0,53987.0,0.093638]
[1725671021795,0.008,53988.0,53987.0,0.093638]
[1725671022499,0.100636,53988.0,53987.0,0.093638]
[1725671026293,0.11222297,53988.0,53987.0,0.093638]
[1725671027002,0.100636,53988.0,53987.0,0.093638]
[1725671027201,0.11222299,53988.0,53987.0,0.093638]
[1725671027391,0.17038063,53988.0,53987.0,0.093638]
[1725671027797,0.15879364,53988.0,53987.0,0.001]
[1725671028105,0.25148961,53988.0,53987.0,0.1]
[1725671028595,0.25148961,53988.0,53987.0,0.09000001]
[1725671028801,0.25148961,53988.0,53987.0,0.18263801]
[1725671029602,0.37479669,53988.0,53987.0,0.18263801]
[1725671029907,0.37479669,53988.0,53987.0,0.18363801]
[1725671030293,0.3632097,53988.0,53987.0,0.18363801]
[1725671030595,0.37479661,53988.0,53987.0,0.18363801]
[1725671032395,0.37479661,53988.0,53987.0,0.16527421]
[1725671034000,0.2346076,53988.0,53949.0,0.1856]
[1725671034206,0.29564474,53977.0,53976.0,0.092656]
[1725671034391,0.64583773,53977.0,53976.0,0.13809831]
[1725671034995,0.35019299,53977.0,53976.0,0.13809831]
[1725671035191,0.13489399,53977.0,53976.0,0.03809831]
[1725671035395,0.13489399,53977.0,53976.0,0.13809831]
[1725671036309,0.13589399,53977.0,53976.0,0.13809831]
[1725671036604,0.01258813,53977.0,53976.0,0.13809831]
[1725671037501,0.01258813,53977.0,53976.0,0.03809831]
[1725671037804,0.01258813,53977.0,53976.0,0.13809831]
[1725671039018,0.01258813,53977.0,53976.0,0.15285539]
[1725671039801,0.001,53977.0,53976.0,0.15285539]
[1725671040107,0.01258802,53977.0,53976.0,0.24545184]
[1725671040309,0.01258802,53977.0,53976.0,0.38663712]
[1725671041101,0.01258802,53977.0,53976.0,0.29403326]
[1725671041505,0.01258802,53977.0,53976.0,0.38654611]
[1725671041698,0.01258802,53977.0,53976.0,0.29403326]
[1725671041898,0.05402395,53977.0,53976.0,0.29403326]
[1725671042100,0.04243593,53977.0,53976.0,0.29403326]
[1725671042314,0.12354576,53977.0,53976.0,0.3865499]
[1725671042612,0.13513313,53977.0,53976.0,0.15285539]
[1725671043214,0.13513313,53977.0,53976.0,0.07494061]
[1725671043509,0.13513313,53977.0,53976.0,0.16759661]
[1725671043710,0.13513313,53977.0,53976.0,0.40129777]
[1725671044202,0.13513313,53977.0,53976.0,0.16759661]
[1725671044403,0.13513313,53977.0,53976.0,0.30877507]
[1725671044605,0.13513313,53977.0,53976.0,0.16759661]
[1725671048719,0.12354576,53977.0,53976.0,0.16759661]
[1725671048906,0.13513385,53977.0,53976.0,0.16759661]
[1725671049111,0.05402402,53977.0,53976.0,0.10741308]
[1725671049306,0.05402402,53977.0,53976.0,0.15189589]
[1725671049517,0.05402402,53977.0,53976.0,0.70769589]
[1725671049710,0.05402402,53977.0,53976.0,0.75309589]
[1725671050015,0.01258809,53977.0,53976.0,0.75309589]
[1725671050911,0.01258809,53977.0,53976.0,0.76795058]
[1725671051119,0.01158809,53977.0,53976.0,0.76795058]
[1725671051319,0.3265,54003.0,53998.0,0.092618]
[1725671051513,0.1416,54011.0,54002.0,0.1]
[1725671051719,0.27749553,54010.0,54002.0,0.1]
[1725671051905,0.1416,54011.0,53996.0,0.092622]
[1725671051906,0.24078013,54008.0,53996.0,0.092622]
[1725671052217,0.34078013,54006.0,53987.0,0.0454]
[1725671052414,0.2314638,54005.0,53996.0,0.1]
[1725671052607,0.092614,54001.0,53996.0,0.1]
[1725671052812,0.17574961,54000.0,53996.0,0.1]
[1725671053024,0.05684817,53999.0,53996.0,0.101]
[1725671053206,0.05684817,53998.0,53996.0,0.101]
[1725671053412,0.05684817,53997.0,53996.0,0.101]
[1725671055013,0.05684817,53997.0,53996.0,0.193622]
[1725671055418,0.05684817,53997.0,53996.0,0.20827091]
[1725671056321,0.06284817,53997.0,53996.0,0.20827091]
[1725671056918,0.09095952,53997.0,53996.0,0.20827091]
[1725671057116,0.17204861,53997.0,53996.0,0.20827091]
[1725671058320,0.09095952,53997.0,53996.0,0.20827091]
[1725671058623,0.09095952,53997.0,53996.0,0.30089291]
[1725671058828,0.03411135,53997.0,53996.0,0.30089291]
[1725671059022,0.0475,54014.0,54009.0,0.0926]
[1725671059218,0.12091869,54010.0,54009.0,0.0926]
[1725671059418,0.12091869,54010.0,54009.0,0.1926]
[1725671060113,0.12091869,54010.0,54009.0,0.2826]
[1725671060617,0.12791869,54010.0,54009.0,0.2836]
[1725671061118,0.12791774,54010.0,54009.0,0.2836]
[1725671061430,0.04684387,54010.0,54009.0,0.2836]
[1725671062229,0.01858095,54010.0,54009.0,0.2836]
[1725671062621,0.03846657,54010.0,54009.0,0.29860497]
[1725671064125,0.01858095,54010.0,54009.0,0.29860497]
[1725671065135,0.02895009,54017.0,54016.0,0.092588]
[1725671065432,0.3265,54023.0,54009.0,0.76144497]
[1725671065433,0.3265,54023.0,54022.0,0.092578]
[1725671065635,0.02895009,54025.0,54022.0,0.282578]
[1725671065933,0.02895009,54025.0,54024.0,0.19]
[1725671066337,0.12152009,54027.0,54024.0,0.19]
[1725671066723,0.02895009,54025.0,54024.0,0.16174251]
[1725671066928,0.12321877,54025.0,54024.0,0.19]
[1725671067125,0.12321877,54025.0,54024.0,0.282574]
[1725671067327,0.05682233,54025.0,54024.0,0.282574]
[1725671068537,0.05682233,54025.0,54024.0,0.283574]
[1725671070034,0.05682233,54025.0,54024.0,0.001]
[1725671070542,0.05682233,54025.0,54024.0,0.093574]
[1725671071043,0.12321877,54025.0,54024.0,0.093574]
[1725671071251,0.05682233,54025.0,54024.0,0.093574]
[1725671072035,0.12321877,54025.0,54024.0,0.08421661]
[1725671072237,0.29760246,54025.0,54024.0,0.08421661]
[1725671072631,0.05682233,54025.0,54024.0,0.08421661]
[1725671072826,0.05682233,54025.0,54024.0,0.04602688]
[1725671073738,0.24078013,54026.0,54025.0,0.092572]
[1725671073942,0.092569,54027.0,54022.0,0.01508874]
[1725671074238,0.10731713,54027.0,54021.0,0.19]
[1725671075345,0.10731713,54027.0,54022.0,0.001]
[1725671075844,0.10731713,54027.0,54026.0,0.092571]
[1725671077243,0.10731713,54027.0,54026.0,0.093571]
[1725671079137,0.11889542,54027.0,54026.0,0.093571]
[1725671080043,0.10731713,54027.0,54026.0,0.093571]
[1725671080242,0.11889578,54027.0,54026.0,0.093571]
[1725671081647,0.10731713,54027.0,54026.0,0.093571]
[1725671081943,0.10731713,54027.0,54026.0,0.193571]
[1725671082439,0.11889587,54027.0,54026.0,0.193571]
[1725671082744,0.092569,54027.0,54026.0,0.193571]
[1725671082936,0.10414743,54027.0,54026.0,0.193571]
[1725671083133,0.092569,54027.0,54026.0,0.193571]
[1725671083333,0.10414739,54027.0,54026.0,0.193571]
[1725671083533,0.10414739,54027.0,54026.0,0.093571]
[1725671085141,0.11898484,54027.0,54026.0,0.093571]
[1725671087354,0.10740645,54027.0,54026.0,0.093571]
[1725671088950,0.10740645,54027.0,54026.0,0.16757827]
[1725671089152,0.10740645,54027.0,54026.0,0.093571]
[1725671089354,0.11898487,54027.0,54026.0,0.1672761]
[1725671090244,0.11898487,54027.0,54026.0,0.092571]
[1725671090445,0.11898487,54027.0,54026.0,0.093571]
[1725671093759,0.11898528,54027.0,54026.0,0.18608009]
[1725671094359,0.11898528,54027.0,54026.0,0.32692886]
[1725671095255,0.092571,54026.0,54023.0,0.09228429]
[1725671095459,0.092571,54026.0,54004.0,0.092608]
[1725671095460,0.092581,54020.0,54017.0,0.09228429]
[1725671095659,0.20487883,54019.0,54017.0,0.09228429]
[1725671095863,0.20487883,54019.0,54011.0,0.20364652]
[1725671095864,0.092591,54014.0,54013.0,0.09228429]
[1725671096156,0.10416983,54014.0,54012.0,0.18486463]
[1725671096348,0.01057883,54013.0,54012.0,0.18486463]
[1725671096554,0.01057883,54013.0,54012.0,0.32597051]
[1725671096962,0.092591,54014.0,54012.0,0.24795556]
[1725671097147,0.092591,54014.0,54012.0,0.192594]
[1725671098058,0.092591,54014.0,54012.0,0.092594]
[1725671100162,0.092591,54014.0,54013.0,0.092593]
[1725671100456,0.1117275,54014.0,54013.0,0.092593]
[1725671101556,0.11505553,54014.0,54013.0,0.092593]
[1725671101753,0.11505553,54014.0,54013.0,0.282593]
[1725671103363,0.11505553,54014.0,54013.0,0.30091807]
[1725671103660,0.092591,54014.0,54013.0,0.30091807]
[1725671104350,0.11450132,54014.0,54013.0,0.30091807]
[1725671104554,0.12608239,54014.0,54013.0,0.30091807]
[1725671104961,0.10417207,54014.0,54013.0,0.30091807]
[1725671105358,0.12582953,54014.0,54013.0,0.30091807]
[1725671105559,0.03323853,54014.0,54013.0,0.30091807]
[1725671105857,0.03323829,54014.0,54013.0,0.30091807]
[1725671106161,0.01158083,54014.0,54013.0,0.30091807]
[1725671107462,0.0336805,54014.0,54013.0,0.85631807]
[1725671107667,0.0336805,54014.0,54013.0,0.90401807]
[1725671108459,0.0336805,54014.0,54013.0,1.50401807]
[1725671108859,0.02209967,54014.0,54013.0,1.59661107]
[1725671109065,0.03367919,54014.0,54013.0,1.59661107]
[1725671109365,0.03367879,54014.0,54013.0,1.59661107]
[1725671109763,0.01157912,54014.0,54013.0,1.59661107]
[1725671109955,0.01157912,54014.0,54013.0,0.15861807]
[1725671110353,0.01157912,54014.0,54013.0,0.34861807]
[1725671112066,0.01157912,54014.0,54013.0,0.42228569]
[1725671113968,0.01157912,54014.0,54013.0,0.34861807]
[1725671114165,0.01157912,54014.0,54013.0,0.4222912]
[1725671114370,0.01157912,54014.0,54013.0,0.34861807]
[1725671114566,0.01157912,54014.0,54013.0,0.42229307]
[1725671114779,0.01157912,54014.0,54013.0,0.34861807]
[1725671114960,0.01157912,54014.0,54013.0,0.42229707]
[1725671115272,0.01157912,54014.0,54013.0,0.34861807]
[1725671115479,0.092578,54022.0,54020.0,0.092581]
[1725671115669,0.01157937,54021.0,54020.0,0.092581]
[1725671116671,0.03413713,54021.0,54020.0,0.092581]
[1725671116966,0.03413713,54021.0,54020.0,0.093581]
[1725671117361,0.11519223,54021.0,54020.0,0.093581]
[1725671118267,0.11519223,54021.0,54019.0,0.05526212]
[1725671118473,0.05825556,54032.0,54019.0,0.09390403]
[1725671118474,0.10361286,54020.0,54019.0,0.09390403]
[1725671118660,0.03413675,54020.0,54019.0,0.28390403]
[1725671118862,0.03413675,54020.0,54019.0,0.330583]
[1725671119066,0.09096059,54020.0,54019.0,0.330583]
[1725671119666,0.09096059,54020.0,54019.0,0.331583]
[1725671119968,0.09096059,54020.0,54019.0,0.241583]
[1725671124769,0.06840283,54020.0,54019.0,0.241583]
[1725671125072,0.05682384,54020.0,54019.0,0.241583]
[1725671125275,0.06840297,54020.0,54019.0,0.241583]
[1725671126863,0.01157913,54020.0,54019.0,0.241583]
[1725671127064,0.01157913,54020.0,54019.0,0.31526583]
[1725671128276,0.01157913,54020.0,54019.0,0.26726583]
[1725671128471,0.11095707,54024.0,54020.0,0.09258]
[1725671128667,0.11095707,54024.0,54023.0,0.1]
[1725671128862,0.12253586,54024.0,54023.0,0.1]
[1725671129075,0.10415479,54024.0,54023.0,0.1]
[1725671131778,0.12152217,54024.0,54023.0,0.1]
[1725671131967,0.12152217,54024.0,54023.0,0.101]
[1725671133478,0.20257449,54024.0,54023.0,0.101]
[1725671133673,0.20257449,54024.0,54023.0,0.001]
[1725671134376,0.20257449,54024.0,54023.0,0.093576]
[1725671139670,0.12152217,54024.0,54023.0,0.093576]
[1725671139971,0.10415447,54024.0,54023.0,0.093576]
[1725671141182,0.092576,54024.0,54023.0,0.093576]
[1725671141567,0.10415477,54024.0,54023.0,0.093576]
[1725671141971,0.16097766,54024.0,54023.0,0.093576]
[1725671142972,0.14939889,54024.0,54023.0,0.093576]
[1725671143481,0.05682289,54024.0,54023.0,0.093576]
[1725671143683,0.06840166,54024.0,54023.0,0.093576]
[1725671144578,0.05682289,54024.0,54023.0,0.093576]
[1725671145482,0.06840138,54024.0,54023.0,0.093576]
[1725671146578,0.16917519,54024.0,54023.0,0.093576]
[1725671148987,0.1123523,54024.0,54023.0,0.093576]
[1725671152685,0.11234691,54024.0,54023.0,0.18584663]
[1725671152882,0.11234691,54024.0,54023.0,0.23463999]
[1725671153084,0.11234604,54024.0,54023.0,0.23463999]
[1725671153484,0.0660363,54024.0,54023.0,0.23463999]
[1725671154177,0.0660363,54024.0,54023.0,0.42685465]
[1725671154383,0.0660363,54024.0,54023.0,0.28579066]
[1725671154889,0.01157762,54024.0,54023.0,0.28579066]
[1725671155291,0.01157762,54024.0,54023.0,0.193576]
[1725671155490,0.01157762,54024.0,54023.0,0.28579066]
[1725671155991,0.092564,54030.0,54023.0,0.42685099]
[1725671156178,0.092564,54030.0,54029.0,0.192566]
[1725671156495,0.1041415,54030.0,54029.0,0.192566]
[1725671156996,0.25255046,54030.0,54029.0,0.192566]
[1725671159191,0.24097296,54030.0,54029.0,0.092566]
[1725671159391,0.25255046,54030.0,54029.0,0.193566]
[1725671160290,0.20628692,54030.0,54029.0,0.193566]
[1725671161403,0.29605422,54030.0,54029.0,0.193566]
[1725671161695,0.30763169,54030.0,54029.0,0.193566]
[1725671161996,0.40977711,54030.0,54029.0,0.193566]
[1725671162600,0.26039651,54030.0,54029.0,0.193566]
[1725671162793,0.05690629,54030.0,54029.0,0.193566]
[1725671163300,0.01157747,54030.0,54029.0,0.193566]
[1725671163692,0.05690473,54030.0,54029.0,0.193566]
[1725671164093,0.01157747,54030.0,54029.0,0.26732228]
[1725671164901,0.01157708,54030.0,54029.0,0.26732228]
[1725671166300,0.01157708,54030.0,54029.0,0.193566]
[1725671166599,0.10414108,54030.0,54029.0,0.093566]
[1725671166790,0.10414108,54030.0,54029.0,0.001]
[1725671166993,0.12904914,54030.0,54029.0,0.001]
[1725671167298,0.12904914,54030.0,54023.0,0.07375628]
[1725671167299,0.092566,54029.0,54023.0,0.07375628]
[1725671167501,0.092566,54029.0,54021.0,0.092579]
[1725671167502,0.26420954,54028.0,54021.0,0.092579]
[1725671167798,0.092578,54022.0,54021.0,0.092579]
[1725671168598,0.092581,54020.0,54019.0,0.07375628]
[1725671168814,0.092586,54017.0,54016.0,0.07375628]
[1725671168995,0.092586,54017.0,54011.0,0.20364652]
[1725671168996,0.092588,54016.0,54015.0,0.07375628]
[1725671169304,0.092593,54013.0,54011.0,0.07375628]
[1725671169505,0.10317384,54012.0,54010.0,0.07375628]
[1725671169708,0.092595,54012.0,54011.0,0.07375628]
[1725671170204,0.092595,54012.0,54011.0,0.17375628]
[1725671170393,0.092595,54012.0,54011.0,0.1]
[1725671171289,0.0483,54016.0,54012.0,0.092594]
[1725671171598,0.140888,54016.0,54015.0,0.1]
[1725671171792,0.16888432,54016.0,54015.0,0.1]
[1725671171994,0.12058432,54016.0,54015.0,0.19]
[1725671172392,0.07236532,54016.0,54015.0,0.19]
[1725671172596,0.07236532,54016.0,54015.0,0.282588]
[1725671173004,0.07236343,54016.0,54015.0,0.282588]
[1725671173611,0.092578,54022.0,54016.0,0.092587]
[1725671173800,0.07219394,54021.0,54016.0,0.141487]
[1725671174001,0.07219394,54020.0,54016.0,0.141487]
[1725671174202,0.07219394,54019.0,54016.0,0.141487]
[1725671174402,0.07219394,54018.0,54016.0,0.141487]
[1725671174605,0.07219394,54017.0,54016.0,0.141487]
[1725671177002,0.04533661,54017.0,54016.0,0.141487]
[1725671177798,0.05691609,54017.0,54016.0,0.141487]
[1725671177998,0.05691607,54017.0,54016.0,0.331487]
[1725671179101,0.01157948,54017.0,54016.0,0.331487]
[1725671180798,0.092579,54021.0,54017.0,0.092585]
[1725671180999,0.092579,54021.0,54020.0,0.19]
[1725671181305,0.10415846,54021.0,54020.0,0.19]
[1725671182212,0.10415846,54021.0,54020.0,0.191]
[1725671184206,0.01157946,54021.0,54020.0,0.283581]
[1725671185210,0.01157946,54021.0,54020.0,0.191]
[1725671185410,0.10415846,54021.0,54020.0,0.191]
[1725671186108,0.10415846,54021.0,54020.0,0.001]
[1725671186611,0.092579,54021.0,54020.0,0.001]
[1725671186911,0.10415862,54021.0,54020.0,0.001]
[1725671188509,0.19673762,54021.0,54020.0,0.001]
[1725671189011,0.10415862,54021.0,54020.0,0.001]
[1725671189909,0.10415866,54021.0,54020.0,0.001]
[1725671192204,0.13057566,54021.0,54020.0,0.001]
[1725671193008,0.13057562,54021.0,54020.0,0.001]
[1725671194318,0.18740264,54021.0,54020.0,0.001]
[1725671196216,0.23273978,54021.0,54020.0,0.001]
[1725671196515,0.22116016,54021.0,54020.0,0.001]
[1725671196715,0.23273978,54021.0,54020.0,0.001]
[1725671197305,0.18740264,54021.0,54020.0,0.001]
[1725671197510,0.37238038,54021.0,54020.0,0.001]
[1725671197711,0.26846003,54021.0,54020.0,0.001]
[1725671198114,0.33486211,54021.0,54020.0,0.001]
[1725671198316,0.26846003,54021.0,54020.0,0.001]
[1725671199716,0.26846093,54021.0,54020.0,0.001]
[1725671200318,0.47204425,54021.0,54020.0,0.001]
[1725671200719,0.26846093,54021.0,54020.0,0.001]
[1725671201312,0.47204425,54021.0,54020.0,0.001]
[1725671201623,0.33486301,54021.0,54020.0,0.001]
[1725671201812,0.26846093,54021.0,54020.0,0.001]
[1725671202322,0.21163391,54021.0,54020.0,0.001]
[1725671205828,0.21163393,54021.0,54020.0,0.001]
[1725671207118,0.13057654,54021.0,54020.0,0.001]
[1725671207313,0.10415954,54021.0,54020.0,0.001]
[1725671209228,0.14950026,54021.0,54020.0,0.001]
[1725671209425,0.20633177,54021.0,54020.0,0.001]
[1725671213423,0.29891077,54021.0,54020.0,0.001]
[1725671213837,0.20633177,54021.0,54020.0,0.001]
[1725671214430,0.29891077,54021.0,54020.0,0.001]
[1725671215521,0.20633177,54021.0,54020.0,0.001]
[1725671216423,0.29891077,54021.0,54020.0,0.001]
[1725671216824,0.20633177,54021.0,54020.0,0.001]
[1725671217225,0.14950026,54021.0,54020.0,0.001]
[1725671217430,0.10415954,54021.0,54020.0,0.001]
[1725671217722,0.092593,54013.0,54012.0,0.07375628]
[1725671217926,0.22926667,54013.0,54007.0,0.07375628]
[1725671218128,0.1,54009.0,54001.0,0.07375628]
[1725671218436,0.092596,54011.0,53998.0,0.07375628]
[1725671218437,0.092617,53999.0,53998.0,0.07375628]
[1725671218730,0.092617,53999.0,53997.0,0.06828191]
[1725671218731,0.10419754,53999.0,53997.0,0.06828191]
[1725671218922,0.01158054,53998.0,53997.0,0.06828191]
[1725671219531,0.10419954,53998.0,53997.0,0.0497]
[1725671221124,0.10619954,53998.0,53997.0,0.0497]
[1725671221535,0.10419954,53998.0,53997.0,0.0497]
[1725671221743,0.11119954,53998.0,53997.0,0.0507]
[1725671222335,0.099619,53998.0,53997.0,0.0507]
[1725671222537,0.14695376,53998.0,53997.0,0.0507]
[1725671222835,0.11120286,53998.0,53997.0,0.0507]
[1725671225635,0.099619,53998.0,53997.0,0.0507]
[1725671225829,0.11120224,53998.0,53997.0,0.0507]
[1725671227145,0.11120224,53998.0,53997.0,0.001]
[1725671227645,0.20382124,53998.0,53997.0,0.001]
[1725671227843,0.24374741,53998.0,53997.0,0.001]
[1725671228249,0.09262,53997.0,53989.0,0.228033]
[1725671228436,0.1,53994.0,53989.0,0.228033]
[1725671228746,0.05150941,53993.0,53989.0,0.228033]
[1725671228949,0.05150941,53992.0,53989.0,0.228033]
[1725671229151,0.05150941,53991.0,53989.0,0.228033]
[1725671229449,0.01158324,53990.0,53989.0,0.228033]
[1725671229638,0.01158324,53993.0,53989.0,0.228033]
[1725671229838,0.092632,53990.0,53989.0,0.228033]
[1725671230038,0.10421524,53990.0,53989.0,0.228033]
[1725671230440,0.1331801,53990.0,53989.0,0.228033]
[1725671231236,0.10421524,53990.0,53989.0,0.228033]
[1725671231434,0.092634,53989.0,53986.0,0.092639]
[1725671231644,0.01158324,53988.0,53986.0,0.092639]
[1725671232052,0.092634,53989.0,53986.0,0.092639]
[1725671232254,0.011586,53987.0,53986.0,0.092639]
[1725671233754,0.104224,53987.0,53986.0,0.11102954]
[1725671234142,0.104224,53987.0,53986.0,0.21102954]
[1725671236547,0.092643,53984.0,53982.0,0.092646]
[1725671236751,0.011586,53983.0,53982.0,0.092646]
[1725671238447,0.092643,53984.0,53983.0,0.092644]
[1725671238652,0.10423033,53984.0,53983.0,0.092644]
[1725671238848,0.01158733,53984.0,53983.0,0.092644]
[1725671239952,0.01158733,53984.0,53983.0,0.282644]
[1725671241453,0.092638,53987.0,53984.0,0.092641]
[1725671241650,0.01158682,53986.0,53984.0,0.092641]
[1725671241856,0.01158682,53985.0,53984.0,0.092641]
[1725671243445,0.092638,53987.0,53985.0,0.09264]
[1725671243747,0.01158658,53986.0,53985.0,0.09264]